bitfinex/quotes_BTCUSD_20240918
["timestamp","ask_amount","ask_price","bid_price","bid_amount"]
[1726618775486,0.001,60192.0,60191.0,0.332275]
[1726618775723,0.001,60192.0,60191.0,0.830687]
[1726618777152,0.001,60192.0,60191.0,0.498412]
[1726618777399,0.02606753,60194.0,60193.0,0.166132]
[1726618777644,0.266116,60199.0,60193.0,0.166132]
[1726618777645,0.266116,60199.0,60195.0,0.166125]
[1726618778127,0.166112,60201.0,60196.0,0.166121]
[1726618778391,0.1260662,60202.0,60201.0,0.49833]
[1726618778392,0.0260662,60202.0,60201.0,0.49833]
[1726618778649,0.166088,60209.0,60203.0,0.166102]
[1726618778886,0.333821,60210.0,60195.0,0.007]
[1726618779155,0.33797381,60210.0,60188.0,0.0784]
[1726618779392,0.33219,60207.0,60199.0,0.332229]
[1726618779619,0.166102,60204.0,60199.0,0.166114]
[1726618779835,0.166102,60204.0,60200.0,0.166112]
[1726618780066,0.166097,60206.0,60201.0,0.166109]
[1726618780344,0.167745,60205.0,60201.0,0.166109]
[1726618780574,0.166102,60204.0,60200.0,0.166112]
[1726618780794,0.166102,60204.0,60198.0,0.498353]
[1726618781044,0.001646,60205.0,60199.0,0.332231]
[1726618781273,0.167745,60205.0,60200.0,0.166111]
[1726618781504,0.166104,60204.0,60201.0,0.007]
[1726618781735,0.02771005,60205.0,60200.0,0.166111]
[1726618782202,0.166104,60204.0,60198.0,0.332234]
[1726618782438,0.02771005,60205.0,60204.0,0.166101]
[1726618783411,0.02771005,60205.0,60204.0,0.498304]
[1726618783879,0.04506771,60205.0,60204.0,0.498304]
[1726618784808,0.04506771,60205.0,60204.0,0.509304]
[1726618785504,0.04506771,60205.0,60204.0,0.841507]
[1726618785731,0.04506771,60205.0,60204.0,1.07737344]
[1726618785966,0.001646,60205.0,60204.0,1.07737344]
[1726618786928,0.001646,60205.0,60204.0,1.06637344]
[1726618787359,0.001646,60205.0,60204.0,1.08037344]
[1726618787593,0.001646,60205.0,60204.0,1.06637344]
[1726618787820,0.001646,60205.0,60204.0,1.08037344]
[1726618788838,0.001646,60205.0,60204.0,1.06637344]
[1726618789069,0.001646,60205.0,60204.0,1.08037344]
[1726618790316,0.001646,60205.0,60204.0,1.06637344]
[1726618790592,0.001646,60205.0,60204.0,1.08037344]
[1726618792263,0.001646,60205.0,60204.0,0.927507]
[1726618795194,0.02770684,60205.0,60204.0,0.595304]
[1726618795435,0.001646,60205.0,60204.0,0.595304]
[1726618795935,0.001646,60205.0,60204.0,0.927507]
[1726618796170,0.001646,60205.0,60204.0,0.595304]
[1726618798492,0.001646,60205.0,60204.0,0.263101]
[1726618798738,0.01905597,60205.0,60204.0,0.595304]
[1726618799206,0.04511706,60205.0,60204.0,0.595304]
[1726618799950,0.04511706,60205.0,60204.0,0.014]
[1726618800438,0.54341027,60205.0,60204.0,0.014]
[1726618800699,0.21121227,60205.0,60204.0,0.014]
[1726618800976,0.84954718,60205.0,60204.0,0.014]
[1726618801437,1.18174518,60205.0,60204.0,0.014]
[1726618802164,1.18176725,60205.0,60204.0,0.014]
[1726618802661,0.84956925,60205.0,60204.0,0.014]
[1726618803123,0.332218,60202.0,60194.0,0.166127]
[1726618803357,0.166116,60199.0,60194.0,0.166127]
[1726618803628,0.34963411,60201.0,60190.0,0.332278]
[1726618803629,0.332225,60200.0,60190.0,0.332278]
[1726618803856,0.332239,60198.0,60191.0,0.166135]
[1726618804086,0.01741192,60197.0,60192.0,0.166134]
[1726618804308,0.01741192,60196.0,60193.0,0.166131]
[1726618804538,0.01741192,60196.0,60195.0,0.166126]
[1726618804762,0.01746714,60196.0,60195.0,0.166126]
[1726618804993,0.01746714,60196.0,60194.0,0.012]
[1726618805226,0.02606439,60203.0,60197.0,0.33224]
[1726618805422,0.01747119,60202.0,60199.0,0.166115]
[1726618805692,0.18358319,60201.0,60195.0,0.332253]
[1726618805918,0.01747119,60200.0,60197.0,0.166121]
[1726618806161,0.01747119,60199.0,60197.0,0.166121]
[1726618806384,0.01747119,60198.0,60197.0,0.166121]
[1726618806823,0.01747119,60198.0,60197.0,0.498363]
[1726618807049,0.01747119,60198.0,60197.0,0.166121]
[1726618807285,0.01739778,60198.0,60197.0,0.166121]
[1726618807548,0.01739778,60198.0,60197.0,0.180121]
[1726618808695,0.01739778,60198.0,60197.0,0.844605]
[1726618809351,0.01739778,60198.0,60197.0,0.99747144]
[1726618810920,0.01739778,60198.0,60197.0,0.844605]
[1726618813316,0.01739778,60198.0,60197.0,0.014]
[1726618813551,0.54181579,60198.0,60197.0,0.014]
[1726618814516,0.04346179,60198.0,60197.0,0.014]
[1726618815484,0.01740669,60198.0,60197.0,0.014]
[1726618815956,0.01740674,60198.0,60197.0,0.014]
[1726618816900,0.51576074,60198.0,60197.0,0.014]
[1726618817140,0.18352474,60198.0,60197.0,0.014]
[1726618818390,0.51576074,60198.0,60197.0,0.014]
[1726618818617,0.54182386,60198.0,60197.0,0.014]
[1726618819072,0.51576074,60198.0,60197.0,0.014]
[1726618819812,0.51581889,60198.0,60197.0,0.014]
[1726618820074,0.01746489,60198.0,60197.0,0.014]
[1726618820333,0.01746489,60198.0,60197.0,0.180121]
[1726618820592,0.01746489,60198.0,60197.0,0.844605]
[1726618822302,0.04352759,60198.0,60197.0,0.014]
[1726618822556,0.54188159,60198.0,60197.0,0.014]
[1726618824012,0.54183418,60198.0,60197.0,0.014]
[1726618826369,0.87407018,60198.0,60197.0,0.014]
[1726618828113,1.35917262,60198.0,60197.0,0.014]
[1726618828341,1.66344114,60198.0,60197.0,0.014]
[1726618828593,1.70390849,60198.0,60197.0,0.014]
[1726618828849,1.07535144,60184.0,60183.0,0.000824]
[1726618829090,0.93996977,60184.0,60183.0,0.000824]
[1726618829579,1.27228377,60184.0,60183.0,0.000824]
[1726618830288,0.93996977,60184.0,60183.0,0.000824]
[1726618830829,1.43055431,60184.0,60183.0,0.008]
[1726618831076,1.68857144,60184.0,60183.0,0.008]
[1726618831576,1.286116,60183.0,60173.0,0.0039931]
[1726618831825,1.35754199,60183.0,60173.0,0.0039931]
[1726618832071,1.36943833,60183.0,60173.0,0.0039931]
[1726618832306,1.36933833,60183.0,60173.0,0.0039931]
[1726618832541,1.38672303,60183.0,60173.0,0.0039931]
[1726618833016,1.72104203,60183.0,60173.0,0.0039931]
[1726618833528,1.81234203,60183.0,60182.0,0.0099711]
[1726618833794,1.75840081,60183.0,60182.0,0.0099711]
[1726618834022,1.78840081,60183.0,60182.0,0.0099711]
[1726618834557,1.49566,60174.0,60173.0,0.0039931]
[1726618834802,1.96341114,60174.0,60173.0,0.0039931]
[1726618835034,2.00518541,60174.0,60173.0,0.0039931]
[1726618835270,2.03126549,60174.0,60173.0,0.0039931]
[1726618835745,2.05049929,60174.0,60173.0,0.0039931]
[1726618836200,2.04849929,60174.0,60173.0,0.0039931]
[1726618836427,2.04949929,60174.0,60173.0,0.0109931]
[1726618837131,2.04849929,60174.0,60173.0,0.0039931]
[1726618837376,2.01849929,60174.0,60173.0,0.0039931]
[1726618837618,2.05949929,60174.0,60173.0,0.0049931]
[1726618837846,2.06149929,60174.0,60173.0,0.0049931]
[1726618838098,2.12149929,60174.0,60173.0,0.0049931]
[1726618838358,2.11044411,60174.0,60173.0,0.0039931]
[1726618838590,2.09326549,60174.0,60173.0,0.0039931]
[1726618838825,2.11044909,60174.0,60173.0,0.0039931]
[1726618839078,2.10844909,60174.0,60173.0,0.0039931]
[1726618839328,2.11841733,60174.0,60173.0,0.0039931]
[1726618839595,2.1186521,60174.0,60173.0,0.0039931]
[1726618839826,2.09484903,60174.0,60173.0,0.0049931]
[1726618840072,2.11246742,60174.0,60173.0,0.0039931]
[1726618840308,2.12346742,60174.0,60173.0,0.0049931]
[1726618840581,1.5562126,60174.0,60173.0,0.0039931]
[1726618840817,1.5672126,60174.0,60173.0,0.0049931]
[1726618841052,1.5672126,60174.0,60173.0,0.0039931]
[1726618841295,1.5672126,60174.0,60173.0,0.0048161]
[1726618841551,1.5782126,60174.0,60173.0,0.0058161]
[1726618842546,1.55213252,60174.0,60173.0,0.0058161]
[1726618843044,0.97466451,60174.0,60173.0,0.0058161]
[1726618843305,0.52785634,60174.0,60173.0,0.0048161]
[1726618843562,0.53585634,60174.0,60173.0,0.0058161]
[1726618843813,0.02930334,60174.0,60173.0,0.0048161]
[1726618844069,0.04010142,60174.0,60173.0,0.0058161]
[1726618844311,0.02447872,60174.0,60173.0,0.0048161]
[1726618844574,0.04011067,60174.0,60173.0,0.0048161]
[1726618844797,0.20629467,60174.0,60173.0,0.0088161]
[1726618845050,0.19929467,60174.0,60173.0,0.0048161]
[1726618845529,0.22536889,60174.0,60173.0,0.0048161]
[1726618845725,0.19929467,60174.0,60173.0,0.0048161]
[1726618846462,0.20029467,60174.0,60173.0,0.0118161]
[1726618847035,0.03411067,60174.0,60173.0,0.0118161]
[1726618847290,0.53166367,60174.0,60173.0,0.0048161]
[1726618847766,0.53266367,60174.0,60173.0,0.0118161]
[1726618848039,0.86503267,60174.0,60173.0,0.0118161]
[1726618848284,1.11789911,60174.0,60173.0,0.0118161]
[1726618848537,1.45026811,60174.0,60173.0,0.0118161]
[1726618848997,1.29740167,60174.0,60173.0,0.0118161]
[1726618849471,0.96403267,60174.0,60173.0,0.0048161]
[1726618849726,0.96503267,60174.0,60173.0,0.0118161]
[1726618850208,0.03411067,60174.0,60173.0,0.0118161]
[1726618850444,0.03313219,60174.0,60173.0,0.0048161]
[1726618850676,0.03313219,60174.0,60173.0,0.0068161]
[1726618850932,0.03314012,60174.0,60173.0,0.0068161]
[1726618851422,0.19932412,60174.0,60173.0,0.0068161]
[1726618851661,0.03314012,60174.0,60173.0,0.0068161]
[1726618851893,0.03414012,60174.0,60173.0,0.0138161]
[1726618852665,0.03414012,60174.0,60173.0,0.9263511]
[1726618852914,0.01663195,60174.0,60173.0,1.2587251]
[1726618853145,0.001,60174.0,60173.0,1.2587251]
[1726618853377,0.4676,60189.0,60177.0,0.332349]
[1726618853616,0.332278,60191.0,60182.0,0.166161]
[1726618853617,0.166152,60186.0,60182.0,0.166161]
[1726618853850,0.166152,60186.0,60181.0,0.166163]
[1726618854096,0.46342161,60185.0,60179.0,0.166169]
[1726618854327,0.46342161,60185.0,60176.0,0.332353]
[1726618854328,0.166161,60183.0,60176.0,0.332353]
[1726618854562,0.01748821,60182.0,60178.0,0.166172]
[1726618854820,0.166165,60181.0,60177.0,0.007]
[1726618855052,0.01748821,60180.0,60178.0,0.166173]
[1726618855274,0.01748821,60180.0,60177.0,0.007]
[1726618855275,0.01358499,60180.0,60179.0,0.16617]
[1726618855505,0.01358499,60180.0,60177.0,0.007]
[1726618855506,0.03111603,60180.0,60177.0,0.173174]
[1726618855735,0.01753104,60179.0,60177.0,0.173174]
[1726618855965,0.01753104,60179.0,60178.0,0.166173]
[1726618855966,0.01363117,60179.0,60178.0,0.166173]
[1726618856213,0.01753886,60179.0,60178.0,0.166173]
[1726618856443,0.03117569,60179.0,60173.0,0.4187861]
[1726618856691,0.01753886,60178.0,60173.0,0.4187861]
[1726618856926,0.166164,60182.0,60177.0,0.014]
[1726618857154,0.166164,60182.0,60177.0,0.166175]
[1726618857155,0.01752121,60181.0,60177.0,0.166175]
[1726618857402,0.166175,60178.0,60173.0,0.0864161]
[1726618857643,0.166176,60177.0,60173.0,0.0864161]
[1726618857879,0.01752113,60176.0,60174.0,0.166184]
[1726618858108,0.01752113,60175.0,60174.0,0.166184]
[1726618858338,0.01752113,60175.0,60174.0,0.498553]
[1726618858806,0.166174,60178.0,60174.0,0.166184]
[1726618859030,0.01753559,60175.0,60174.0,0.166184]
[1726618859496,0.001646,60186.0,60177.0,0.15286644]
[1726618859790,0.001646,60186.0,60174.0,0.0986]
[1726618859791,0.16616,60183.0,60176.0,0.166177]
[1726618860020,0.16616,60183.0,60174.0,0.0986]
[1726618860021,0.19222972,60184.0,60174.0,0.0986]
[1726618860258,0.19222972,60184.0,60178.0,0.166173]
[1726618860491,0.166163,60182.0,60174.0,0.0986]
[1726618860723,0.166166,60181.0,60177.0,0.012]
[1726618860966,0.166171,60179.0,60173.0,0.2526011]
[1726618861230,0.166176,60178.0,60173.0,0.0864161]
[1726618861468,0.332326,60182.0,60173.0,0.0864161]
[1726618861709,0.34957317,60181.0,60173.0,0.0864161]
[1726618861960,0.166172,60179.0,60173.0,0.0864161]
[1726618862207,0.01724217,60178.0,60173.0,0.2526011]
[1726618862430,0.01724217,60177.0,60174.0,0.174183]
[1726618862663,0.01724217,60176.0,60174.0,0.166183]
[1726618862891,0.01724217,60175.0,60174.0,0.166183]
[1726618863351,0.03092546,60175.0,60174.0,0.166183]
[1726618864040,0.03092546,60175.0,60174.0,0.498552]
[1726618864296,0.03091511,60175.0,60174.0,0.830921]
[1726618864526,0.03091511,60175.0,60174.0,1.16329]
[1726618864764,0.03091511,60175.0,60173.0,0.25328254]
[1726618864765,0.001,60178.0,60177.0,0.498528]
[1726618865480,0.01823281,60178.0,60173.0,0.25328254]
[1726618865729,0.001,60175.0,60174.0,0.180183]
[1726618865982,0.01723582,60177.0,60175.0,0.16618]
[1726618866229,0.01371428,60175.0,60174.0,0.166184]
[1726618866461,0.01723307,60176.0,60174.0,0.166184]
[1726618866700,0.03094735,60175.0,60174.0,0.166184]
[1726618866935,0.03194735,60175.0,60174.0,0.512553]
[1726618867176,0.03094735,60175.0,60174.0,0.498553]
[1726618867454,0.01723307,60175.0,60174.0,0.498553]
[1726618867683,0.01823307,60175.0,60174.0,0.512553]
[1726618868187,0.001,60175.0,60174.0,0.512553]
[1726618868438,0.01827335,60175.0,60174.0,0.512553]
[1726618868705,0.03201326,60175.0,60174.0,0.512553]
[1726618868942,0.03101326,60175.0,60174.0,0.498553]
[1726618869184,0.03201326,60175.0,60174.0,0.512553]
[1726618869411,0.05808604,60175.0,60174.0,0.498553]
[1726618869650,0.05908604,60175.0,60174.0,0.512553]
[1726618870328,0.05708604,60175.0,60174.0,0.498553]
[1726618870552,0.05808604,60175.0,60174.0,0.180184]
[1726618870779,0.05808604,60175.0,60173.0,0.0864161]
[1726618871001,0.18345735,60174.0,60173.0,0.0048161]
[1726618871450,0.21476107,60174.0,60173.0,0.0048161]
[1726618871914,0.21485528,60174.0,60173.0,0.0048161]
[1726618872145,0.21485553,60174.0,60173.0,0.0048161]
[1726618872376,0.01373067,60174.0,60173.0,0.0048161]
[1726618872678,0.04867153,60174.0,60173.0,0.0048161]
[1726618873362,0.54722453,60174.0,60173.0,0.0188161]
[1726618873594,0.54822453,60174.0,60173.0,0.0188161]
[1726618873842,0.88059353,60174.0,60173.0,0.0188161]
[1726618874072,1.33596253,60174.0,60173.0,0.0188161]
[1726618874301,1.33596253,60174.0,60173.0,0.0048161]
[1726618874302,1.89356115,60174.0,60173.0,0.0048161]
[1726618874553,1.99948885,60174.0,60173.0,0.0048161]
[1726618874791,2.05848757,60174.0,60173.0,0.0048161]
[1726618875040,2.05848757,60174.0,60161.0,0.000823]
[1726618875041,0.002,60171.0,60161.0,0.000823]
[1726618875297,1.33593743,60162.0,60161.0,0.000823]
[1726618875536,1.43938844,60162.0,60161.0,0.000823]
[1726618875773,0.9799948,60162.0,60161.0,0.000823]
[1726618876728,0.9849948,60162.0,60161.0,0.000823]
[1726618877448,0.9859948,60162.0,60161.0,0.000823]
[1726618877702,1.03755723,60162.0,60161.0,0.000823]
[1726618878402,1.01455723,60162.0,60161.0,0.000823]
[1726618879123,1.01497845,60162.0,60161.0,0.000823]
[1726618879833,0.98642572,60162.0,60161.0,0.000823]
[1726618880069,0.98042572,60162.0,60161.0,0.000823]
[1726618880772,0.98042572,60162.0,60161.0,0.00058123]
[1726618881495,1.33586072,60162.0,60161.0,0.00058123]
[1726618881732,1.36442891,60162.0,60161.0,0.00058123]
[1726618882636,1.36443253,60162.0,60161.0,0.00058123]
[1726618882913,1.34672693,60162.0,60161.0,0.00058123]
[1726618883152,1.36442688,60162.0,60161.0,0.00058123]
[1726618883375,1.37042688,60162.0,60161.0,0.00158123]
[1726618883615,1.36442688,60162.0,60161.0,0.00058123]
[1726618883837,1.36942688,60162.0,60161.0,0.00058123]
[1726618884342,1.83163608,60162.0,60161.0,0.00058123]
[1726618884569,2.16407108,60162.0,60161.0,0.00058123]
[1726618884806,2.18877975,60162.0,60161.0,0.00058123]
[1726618885036,2.11472832,60162.0,60161.0,0.00058123]
[1726618885279,2.11672832,60162.0,60161.0,0.00058123]
[1726618885532,2.18570593,60162.0,60161.0,0.00058123]
[1726618885769,2.49457274,60162.0,60161.0,0.00058123]
[1726618886028,1.86389944,60155.0,60154.0,0.0039931]
[1726618886499,1.94312684,60155.0,60154.0,0.0039931]
[1726618886742,2.03180209,60155.0,60154.0,0.0039931]
[1726618886978,2.4135925,60155.0,60154.0,0.0039931]
[1726618887215,2.43825071,60155.0,60154.0,0.0039931]
[1726618887439,2.43825071,60155.0,60148.0,0.000823]
[1726618887440,2.19665444,60149.0,60148.0,0.000823]
[1726618887668,2.40071763,60149.0,60148.0,0.000823]
[1726618887945,2.43903521,60149.0,60148.0,0.000823]
[1726618888209,2.36513341,60149.0,60148.0,0.000823]
[1726618888447,2.46642552,60149.0,60148.0,0.000823]
[1726618888907,1.920849,60147.0,60146.0,0.0031481]
[1726618889155,2.10794379,60147.0,60146.0,0.0031481]
[1726618889386,2.12160295,60147.0,60146.0,0.0031481]
[1726618889623,2.0930166,60147.0,60146.0,0.0031481]
[1726618889858,2.12166177,60147.0,60146.0,0.0031481]
[1726618890097,1.78714377,60147.0,60146.0,0.0031481]
[1726618890352,1.69714377,60147.0,60146.0,0.0031481]
[1726618890598,0.57658977,60147.0,60146.0,0.0031481]
[1726618890837,0.54796418,60147.0,60146.0,0.0031481]
[1726618891097,0.04918718,60147.0,60146.0,0.15601454]
[1726618891342,0.01365916,60147.0,60146.0,0.15601454]
[1726618891881,0.332479,60155.0,60146.0,0.15601454]
[1726618891882,0.166238,60155.0,60151.0,0.166247]
[1726618892120,0.03480309,60154.0,60151.0,0.15286644]
[1726618892358,0.03480309,60153.0,60151.0,0.31911444]
[1726618892602,0.01393335,60154.0,60153.0,0.166242]
[1726618892866,0.166243,60153.0,60151.0,0.15286644]
[1726618893098,0.498736,60152.0,60151.0,0.004]
[1726618893368,0.498736,60152.0,60148.0,0.000823]
[1726618893369,0.166253,60149.0,60148.0,0.000823]
[1726618893613,0.49876,60149.0,60148.0,0.000823]
[1726618893848,0.51244154,60149.0,60148.0,0.000823]
[1726618894083,0.17993454,60149.0,60148.0,0.000823]
[1726618894805,0.19752506,60149.0,60148.0,0.000823]
[1726618895526,0.03127206,60149.0,60148.0,0.000823]
[1726618895759,0.01368154,60149.0,60148.0,0.014823]
[1726618895986,0.01468154,60149.0,60148.0,0.014823]
[1726618896215,0.01468154,60149.0,60148.0,0.181079]
[1726618896460,0.01468154,60149.0,60148.0,0.513592]
[1726618896696,0.001,60149.0,60148.0,0.846105]
[1726618896938,0.001,60149.0,60148.0,0.014823]
[1726618897438,0.01819345,60149.0,60148.0,0.014823]
[1726618897665,0.04604003,60149.0,60148.0,0.014823]
[1726618898202,0.04578856,60149.0,60148.0,0.014823]
[1726618898691,0.04578856,60149.0,60148.0,0.181079]
[1726618899160,0.04578856,60149.0,60148.0,0.513592]
[1726618899633,0.03554431,60149.0,60148.0,0.513592]
[1726618899878,0.03554431,60149.0,60148.0,0.846105]
[1726618900104,0.01794198,60149.0,60148.0,0.846105]
[1726618900337,0.01795906,60149.0,60148.0,0.846105]
[1726618900576,0.00074853,60149.0,60148.0,0.846105]
[1726618900848,0.00074853,60149.0,60148.0,1.354818]
[1726618901089,0.796,60171.0,60157.0,0.22967341]
[1726618901323,0.03484343,60167.0,60165.0,0.166208]
[1726618901570,0.03484343,60166.0,60161.0,0.33244]
[1726618901822,0.01049262,60167.0,60155.0,0.332471]
[1726618901823,0.03484343,60165.0,60155.0,0.332471]
[1726618902062,0.166221,60161.0,60156.0,0.166234]
[1726618902307,0.03484343,60164.0,60154.0,0.332478]
[1726618902308,0.03484343,60160.0,60154.0,0.332478]
[1726618902532,0.03484343,60160.0,60151.0,0.332495]
[1726618902533,0.03484343,60159.0,60157.0,0.002]
[1726618902770,0.332412,60167.0,60158.0,0.332457]
[1726618902771,0.1,60166.0,60158.0,0.332457]
[1726618903003,0.36754001,60165.0,60155.0,0.337471]
[1726618903273,0.1,60166.0,60151.0,0.22967341]
[1726618903274,0.03511801,60164.0,60156.0,0.332468]
[1726618903507,0.03511801,60163.0,60156.0,0.56214141]
[1726618903742,0.1,60167.0,60163.0,0.166214]
[1726618903968,0.03495469,60166.0,60163.0,0.166214]
[1726618904207,0.03495469,60165.0,60156.0,0.22967341]
[1726618904477,0.1,60167.0,60163.0,0.498645]
[1726618904478,0.03495469,60164.0,60163.0,0.498645]
[1726618904723,0.0349555,60164.0,60156.0,0.332465]
[1726618904954,0.166219,60162.0,60157.0,0.16623]
[1726618905190,0.0176484,60161.0,60158.0,0.166227]
[1726618905417,0.0176484,60160.0,60159.0,0.166225]
[1726618905654,0.03496345,60160.0,60159.0,0.166225]
[1726618905896,0.03496345,60160.0,60156.0,0.340465]
[1726618906130,0.03496345,60159.0,60157.0,0.332462]
[1726618906384,0.166215,60163.0,60158.0,0.166228]
[1726618906572,0.0349192,60162.0,60155.0,0.33247]
[1726618906797,0.0349192,60161.0,60150.0,0.23167341]
[1726618907044,0.03489984,60160.0,60157.0,0.009]
[1726618907271,0.001646,60164.0,60151.0,0.03]
[1726618907272,0.03490013,60159.0,60156.0,0.332467]
[1726618907495,0.001646,60164.0,60163.0,0.166215]
[1726618907721,0.03654639,60164.0,60163.0,0.166215]
[1726618908820,0.03654639,60164.0,60156.0,0.166232]
[1726618909045,0.166222,60161.0,60146.0,0.0031481]
[1726618909262,0.03490039,60160.0,60157.0,0.166231]
[1726618909487,0.03490039,60159.0,60158.0,0.166228]
[1726618909717,0.03490039,60159.0,60158.0,0.498685]
[1726618909936,0.04541425,60159.0,60158.0,0.498685]
[1726618910150,0.03490039,60159.0,60158.0,0.498685]
[1726618911410,0.001646,60164.0,60161.0,0.166219]
[1726618911635,0.001646,60164.0,60159.0,0.332447]
[1726618911840,0.03490925,60163.0,60162.0,0.498652]
[1726618912099,0.03490925,60163.0,60162.0,0.831087]
[1726618912331,0.03490925,60163.0,60162.0,0.929787]
[1726618912570,0.03490925,60163.0,60162.0,1.341322]
[1726618912792,0.01727235,60163.0,60162.0,1.341322]
[1726618913020,0.001646,60164.0,60163.0,1.163505]
[1726618913754,0.01929076,60164.0,60163.0,0.831075]
[1726618913983,0.03658698,60164.0,60163.0,0.831075]
[1726618914450,0.01894222,60164.0,60163.0,0.845075]
[1726618914686,0.001646,60164.0,60163.0,0.845075]
[1726618914938,0.01894943,60164.0,60163.0,0.845075]
[1726618915182,0.01900936,60164.0,60163.0,0.845075]
[1726618915422,0.03637272,60164.0,60163.0,0.845075]
[1726618915653,0.01900936,60164.0,60163.0,0.845075]
[1726618915876,0.01900936,60164.0,60163.0,0.512645]
[1726618916324,0.01900936,60164.0,60163.0,0.180215]
[1726618916543,0.04508723,60164.0,60163.0,0.512645]
[1726618916771,0.04508723,60164.0,60163.0,0.014]
[1726618916993,0.0801454,60164.0,60163.0,0.014]
[1726618917258,0.09066583,60164.0,60163.0,0.180215]
[1726618917464,0.06458796,60164.0,60163.0,0.512645]
[1726618917685,0.05406753,60164.0,60163.0,0.014]
[1726618917889,0.06458242,60164.0,60163.0,0.014]
[1726618918127,0.06458242,60164.0,60163.0,0.512645]
[1726618918371,0.06460501,60164.0,60163.0,0.014]
[1726618918655,0.05409012,60164.0,60163.0,0.014]
[1726618918893,0.23081908,60164.0,60163.0,0.014]
[1726618919377,0.21344468,60164.0,60163.0,0.014]
[1726618919620,0.19573832,60164.0,60163.0,0.014]
[1726618919810,0.21314397,60164.0,60163.0,0.014]
[1726618920338,0.04722913,60164.0,60163.0,0.014]
[1726618920790,0.07330779,60164.0,60163.0,0.014]
[1726618921037,0.07330779,60164.0,60163.0,0.512645]
[1726618921038,0.05560498,60164.0,60163.0,0.512645]
[1726618921270,0.04508802,60164.0,60163.0,0.512645]
[1726618921516,0.03676001,60164.0,60163.0,0.512645]
[1726618922019,0.03676001,60164.0,60163.0,0.845075]
[1726618924113,0.03671302,60164.0,60163.0,0.845075]
[1726618925084,0.167858,60164.0,60163.0,0.014]
[1726618925322,0.20288682,60164.0,60163.0,0.014]
[1726618925555,1.335699,60164.0,60163.0,0.014]
[1726618926030,1.35762423,60164.0,60163.0,0.014]
[1726618926526,0.332436,60162.0,60149.0,0.000823]
[1726618926770,0.03544032,60161.0,60149.0,0.000823]
[1726618927016,0.38168396,60161.0,60149.0,0.000823]
[1726618927273,0.332466,60157.0,60149.0,0.000823]
[1726618927496,0.18375891,60156.0,60151.0,0.166247]
[1726618927719,0.18375891,60156.0,60149.0,0.000823]
[1726618927720,0.01752391,60155.0,60149.0,0.000823]
[1726618927942,0.01752391,60154.0,60149.0,0.000823]
[1726618928165,0.01752391,60153.0,60149.0,0.000823]
[1726618928395,0.01752391,60152.0,60149.0,0.000823]
[1726618928700,0.0139698,60152.0,60151.0,0.166248]
[1726618928897,0.01746097,60152.0,60149.0,0.000823]
[1726618929159,0.01746097,60151.0,60149.0,0.000823]
[1726618929383,0.01746097,60150.0,60149.0,0.000823]
[1726618929617,0.03141976,60150.0,60149.0,0.000823]
[1726618929847,0.03141976,60150.0,60149.0,0.167076]
[1726618930070,0.03142843,60150.0,60149.0,0.178076]
[1726618930297,0.03142843,60150.0,60149.0,0.167076]
[1726618930985,0.03142843,60150.0,60149.0,0.181076]
[1726618931471,0.03142843,60150.0,60149.0,0.014823]
[1726618932921,0.53018143,60150.0,60149.0,0.014823]
[1726618933419,0.51271179,60150.0,60149.0,0.014823]
[1726618933678,0.8627191,60150.0,60149.0,0.014823]
[1726618933927,0.8627191,60150.0,60149.0,0.000823]
[1726618934168,0.8627191,60150.0,60149.0,0.014823]
[1726618935195,0.5302171,60150.0,60149.0,0.014823]
[1726618935434,0.55630289,60150.0,60149.0,0.014823]
[1726618935667,0.88880489,60150.0,60149.0,0.014823]
[1726618935910,0.88880489,60150.0,60149.0,0.000823]
[1726618936152,0.88880489,60150.0,60149.0,0.007823]
[1726618936153,0.55630289,60150.0,60149.0,0.007823]
[1726618936448,0.88880489,60150.0,60149.0,0.000823]
[1726618936952,0.88862462,60150.0,60149.0,0.005823]
[1726618937189,0.87129958,60150.0,60149.0,0.000823]
[1726618937444,0.88862364,60150.0,60149.0,0.007823]
[1726618937678,0.88862364,60150.0,60149.0,0.000823]
[1726618938156,0.55612164,60150.0,60149.0,0.000823]
[1726618939538,0.55612164,60150.0,60149.0,0.005823]
[1726618939766,0.88862364,60150.0,60149.0,0.000823]
[1726618939990,0.55612164,60150.0,60149.0,0.000823]
[1726618940219,0.55612042,60150.0,60149.0,0.007823]
[1726618940446,0.55612042,60150.0,60149.0,0.000823]
[1726618940882,0.55612042,60150.0,60149.0,0.006823]
[1726618941103,0.55612042,60150.0,60149.0,0.000823]
[1726618941371,0.55612042,60150.0,60149.0,0.007823]
[1726618942732,0.55612042,60150.0,60149.0,0.000823]
[1726618942955,0.88862242,60150.0,60149.0,0.006823]
[1726618943238,1.08272242,60150.0,60149.0,0.006823]
[1726618943459,1.38913863,60150.0,60149.0,0.000823]
[1726618943684,1.38913863,60150.0,60149.0,0.008823]
[1726618943685,1.81878551,60150.0,60149.0,0.008823]
[1726618943914,1.48628331,60150.0,60149.0,0.008823]
[1726618944137,1.48628331,60150.0,60149.0,0.000823]
[1726618944354,1.47129666,60150.0,60149.0,0.003823]
[1726618944817,1.47129666,60150.0,60149.0,0.000823]
[1726618945299,1.42188137,60150.0,60149.0,0.000823]
[1726618945978,0.63977737,60150.0,60149.0,0.000823]
[1726618946207,0.63303443,60150.0,60149.0,0.000823]
[1726618946899,0.63003443,60150.0,60149.0,0.000823]
[1726618947401,0.61271179,60150.0,60149.0,0.000823]
[1726618947657,0.96247108,60150.0,60149.0,0.000823]
[1726618947877,0.96547108,60150.0,60149.0,0.000823]
[1726618948108,0.96247108,60150.0,60149.0,0.000823]
[1726618949306,0.62996908,60150.0,60149.0,0.000823]
[1726618949472,0.62996908,60150.0,60149.0,0.002823]
[1726618949742,0.62996908,60150.0,60149.0,0.000823]
[1726618949743,0.96247108,60150.0,60149.0,0.000823]
[1726618949946,0.62996908,60150.0,60149.0,0.000823]
[1726618950149,0.62996908,60150.0,60149.0,0.002823]
[1726618950288,0.96247108,60150.0,60149.0,0.002823]
[1726618950496,0.96247108,60150.0,60149.0,0.000823]
[1726618950704,0.94521379,60150.0,60149.0,0.006823]
[1726618950918,0.96243796,60150.0,60149.0,0.000823]
[1726618951156,0.96243811,60150.0,60149.0,0.000823]